fUSD/lending_fUSD_20241107
["ID","MTS","AMOUNT","RATE_DAILY","PERIOD"]
[341576959,1731006642941,-500.0,0.00027942,2]
[341576960,1731006642950,-500.0,0.00027942,2]
[341576961,1731006642959,-1042.79,0.00027942,2]
[341576962,1731006642968,-500.0,0.00027942,2]
[341576963,1731006642977,-815.39,0.00027942,2]
[341576964,1731006642986,-500.0,0.00027942,2]
[341576965,1731006642996,-500.0,0.00027942,2]
[341576966,1731006643005,-1276.42,0.00027942,2]
[341576967,1731006643014,-1160.45,0.00027942,2]
[341576968,1731006643027,-58.94253923,0.00027942,2]
[341576969,1731006643041,-441.05746077,0.00027942,2]
[341576970,1731006643050,-273.03683476,0.00027942,2]
[341576971,1731006643061,-226.96316524,0.00027942,2]
[341576972,1731006643071,-500.0,0.00027942,2]
[341576973,1731006643080,-991.95,0.00027942,2]
[341576976,1731006643089,-500.0,0.00027942,2]
[341576978,1731006643099,-500.0,0.00027942,2]
[341576979,1731006643108,-500.0,0.00027942,2]
[341576980,1731006643117,-500.0,0.00027942,2]
[341576981,1731006643126,-2096.29,0.00027942,2]
[341576982,1731006643135,-500.0,0.00027942,2]
[341576983,1731006643145,-500.0,0.00027942,2]
[341576984,1731006643155,-426.14100387,0.00027942,2]
[341576985,1731006643166,-73.85899613,0.00027942,2]
[341576986,1731006643175,-500.0,0.00027942,2]
[341576987,1731006643185,-500.0,0.00027942,2]
[341576988,1731006643194,-1112.02,0.00027942,2]
[341576989,1731006643203,-546.77,0.00027942,2]
[341576990,1731006643211,-507.01,0.00027942,2]
[341576991,1731006643220,-500.0,0.00027942,2]
[341576992,1731006643230,-500.0,0.00027942,2]
[341576993,1731006643239,-1440.6,0.00027942,2]
[341576994,1731006643248,-1299.27,0.00027942,2]
[341576995,1731006643257,-634.36,0.00027942,2]
[341576996,1731006643266,-500.0,0.00027942,2]
[341576997,1731006643277,-1237.47,0.00027942,2]
[341576998,1731006643286,-500.0,0.00027942,2]
[341576999,1731006643295,-1400.48,0.00027942,2]
[341577000,1731006643304,-880.63,0.00027942,2]
[341577001,1731006643313,-1189.25,0.00027942,2]
[341577002,1731006643322,-392.68391171,0.00027942,2]
[341577003,1731006643446,-107.31608829,0.00027942,2]
[341577004,1731006643458,-500.0,0.00027942,2]
[341577005,1731006643467,-500.0,0.00027942,2]
[341577006,1731006643477,-273.3548884,0.00027942,2]
[341577007,1731006643487,-500.0,0.00027942,2]
[341577008,1731006643495,-740.28,0.00027942,2]
[341577009,1731006643506,-500.0,0.00027942,2]
[341577010,1731006643516,-500.0,0.00027942,2]
[341577011,1731006643528,-500.0,0.00027942,2]
[341577013,1731006643538,-500.0,0.00027942,2]
[341577014,1731006643547,-500.0,0.00027942,2]
[341577015,1731006643557,-860.23,0.00027942,2]
[341577016,1731006643570,-500.0,0.00027942,2]
[341577017,1731006643579,-500.0,0.00027942,2]
[341577018,1731006643590,-500.0,0.00027942,2]
[341577019,1731006643599,-733.25,0.00027942,2]
[341577020,1731006643610,-500.0,0.00027942,2]
[341577021,1731006643620,-2079.61,0.00027942,2]
[341577022,1731006643629,-500.0,0.00027942,2]
[341577023,1731006643640,-500.0,0.00027942,2]
[341577024,1731006643650,-1402.17,0.00027942,2]
[341577025,1731006643659,-919.14,0.00027942,2]
[341577026,1731006643669,-564.55,0.00027942,2]
[341577027,1731006643679,-500.0,0.00027942,2]
[341577028,1731006643688,-500.0,0.00027942,2]
[341577029,1731006643701,-500.0,0.00027942,2]
[341577030,1731006643711,-500.0,0.00027942,2]
[341577031,1731006643721,-500.0,0.00027942,2]
[341577032,1731006643731,-500.0,0.00027942,2]
[341577033,1731006643741,-1687.74,0.00027942,2]
[341577035,1731006643751,-511.81467233,0.00027942,2]
[341577036,1731006643761,-500.0,0.00027942,2]
[341577037,1731006643773,-500.0,0.00027942,2]
[341577038,1731006643783,-521.26747256,0.00027942,2]
[341577039,1731006643792,-500.0,0.00027942,2]
[341577040,1731006643801,-869.33,0.00027942,2]
[341577042,1731006643811,-6466.8,0.00027942,2]
[341577043,1731006643829,-500.0,0.00027942,2]
[341577044,1731006643839,-492.44298131,0.00027942,2]
[341577045,1731006643852,-7.55701869,0.00027942,2]
[341577046,1731006643862,-500.0,0.00027942,2]
[341577047,1731006643872,-500.0,0.00027942,2]
[341577048,1731006643881,-500.0,0.00027942,2]
[341577049,1731006643893,-775.1,0.00027942,2]
[341577050,1731006643902,-503.7601567,0.00027942,2]
[341577051,1731006643912,-500.0,0.00027942,2]
[341577052,1731006643921,-1751.76,0.00027942,2]
[341577053,1731006643931,-805.76,0.00027942,2]
[341577054,1731006643941,-717.44,0.00027942,2]
[341577055,1731006643950,-500.0,0.00027942,2]
[341577056,1731006643960,-500.0,0.00027942,2]
[341577057,1731006643969,-500.0,0.00027942,2]
[341577058,1731006643979,-719.7,0.00027942,2]
[341577059,1731006643988,-634.28,0.00027943,2]
[341577060,1731006643997,-500.0,0.00027943,2]
[341577061,1731006644007,-500.0,0.00027943,2]
[341577062,1731006644017,-619.42,0.00027943,2]
[341577063,1731006644031,-502.51187253,0.00027943,2]
[341577064,1731006644041,-500.0,0.00027943,2]
[341577065,1731006644050,-500.0,0.00027943,2]
[341577066,1731006644060,-500.0,0.00027943,2]
[341577067,1731006644069,-500.0,0.00027943,2]
[341577068,1731006644078,-500.0,0.00027943,2]
[341577069,1731006644089,-500.0,0.00027943,2]
[341577070,1731006644099,-500.0,0.00027943,2]
[341577071,1731006644109,-500.0,0.00027943,2]
[341577072,1731006644119,-500.0,0.00027943,2]
[341577073,1731006644129,-500.0,0.00027943,2]
[341577074,1731006644139,-500.0,0.00027943,2]
[341577075,1731006644148,-666.11,0.00027943,2]
[341577076,1731006644158,-500.0,0.00027943,2]
[341577077,1731006644167,-500.0,0.00027943,2]
[341577078,1731006644176,-500.0,0.00027943,2]
[341577079,1731006644186,-500.0,0.00027943,2]
[341577080,1731006644196,-500.0,0.00027943,2]
[341577081,1731006644206,-500.0,0.00027943,2]
[341577082,1731006644216,-500.0,0.00027943,2]
[341577083,1731006644225,-500.0,0.00027943,2]
[341577084,1731006644235,-500.0,0.00027943,2]
[341577085,1731006644245,-500.0,0.00027943,2]
[341577086,1731006644255,-500.0,0.00027943,2]
[341577087,1731006644265,-500.0,0.00027943,2]
[341577088,1731006644279,-353.14613068,0.00027943,2]
[341577089,1731006644289,-500.0,0.00027943,2]
[341577090,1731006644299,-500.0,0.00027943,2]
[341577091,1731006644308,-684.31,0.00027943,2]
[341577092,1731006644318,-683.37,0.00027943,2]
[341577093,1731006644328,-1140.84,0.00027943,2]
[341577094,1731006644338,-500.0,0.00027943,2]
[341577095,1731006644348,-500.0,0.00027943,2]
[341577096,1731006644358,-500.0,0.00027943,2]
[341577097,1731006644368,-500.0,0.00027943,2]
[341577098,1731006644378,-594.1,0.00027943,2]
[341577099,1731006644387,-500.0,0.00027943,2]
[341577100,1731006644397,-500.0,0.00027943,2]
[341577101,1731006644407,-774.5,0.00027943,2]
[341577102,1731006644416,-500.0,0.00027943,2]
[341577103,1731006644426,-500.0,0.00027943,2]
[341577104,1731006644436,-86.50379767,0.00027943,2]
[341577105,1731006644449,-342.108,0.00027943,2]
[341577106,1731006644473,-71.38820233,0.00027943,2]
[341577107,1731006644483,-568.18,0.00027943,2]
[341577108,1731006644493,-514.39,0.00027943,2]
[341577109,1731006644503,-500.0,0.00027943,2]
[341577110,1731006644514,-500.0,0.00027943,2]
[341577111,1731006644528,-500.0,0.00027943,2]
[341577112,1731006644538,-153.85177724,0.00027943,2]
[341577113,1731006645401,-323.99,0.00027932,10]
[341577114,1731006645412,-500.0,0.0002794,2]
[341577115,1731006645422,-500.0,0.0002794,2]
[341577116,1731006645432,-500.0,0.0002794,2]
[341577117,1731006645443,-500.0,0.00027941,2]
[341577118,1731006645454,-500.0,0.00027941,2]
[341577119,1731006645465,-800.59,0.00027941,2]
[341577120,1731006645475,-500.0,0.00027941,2]
[341577121,1731006645486,-346.14822276,0.00027943,2]
[341577122,1731006645497,-500.0,0.00027943,2]
[341577123,1731006645508,-150.0,0.00027943,2]
[341577124,1731006645521,-500.0,0.00027943,2]
[341577125,1731006645533,-500.0,0.00027943,2]
[341577126,1731006645544,-1732.62,0.00027943,2]
[341577127,1731006645555,-500.0,0.00027943,2]
[341577128,1731006645568,-1366.43,0.00027943,2]
[341577129,1731006645579,-500.0,0.00027943,2]
[341577130,1731006645589,-500.0,0.00027943,2]
[341577131,1731006645600,-500.0,0.00027943,2]
[341577132,1731006645611,-625.64,0.00027943,2]
[341577133,1731006645622,-500.0,0.00027943,2]
[341577134,1731006645633,-500.0,0.00027943,2]
[341577135,1731006645645,-500.0,0.00027943,2]
[341577136,1731006645656,-737.26,0.00027943,2]
[341577137,1731006645667,-589.04,0.00027943,2]
[341577138,1731006645679,-500.0,0.00027943,2]
[341577139,1731006645691,-525.07854982,0.00027943,2]
[341577140,1731006645702,-500.0,0.00027943,2]
[341577141,1731006645713,-500.0,0.00027943,2]
[341577142,1731006645723,-586.28094623,0.00027943,2]
[341577143,1731006645734,-500.0,0.00027943,2]
[341577144,1731006645744,-500.0,0.00027943,2]
[341577145,1731006645755,-500.0,0.00027943,2]
[341577146,1731006645764,-500.0,0.00027943,2]
[341577147,1731006645777,-500.0,0.00027943,2]
[341577148,1731006645788,-768.44,0.00027943,2]
[341577149,1731006645798,-500.0,0.00027943,2]
[341577150,1731006645819,-500.0,0.00027943,2]
[341577151,1731006645830,-489.38721375,0.00027943,2]
[341577152,1731006645842,-500.0,0.00027943,2]
[341577153,1731006645852,-500.0,0.00027943,2]
[341577154,1731006645863,-500.0,0.00027943,2]
[341577155,1731006645873,-914.32,0.00027943,2]
[341577156,1731006645884,-547.53,0.00027943,2]
[341577157,1731006645895,-500.0,0.00027943,2]
[341577159,1731006645906,-500.0,0.00027943,2]
[341577161,1731006645916,-2735.1640418,0.00027953,2]
[341577163,1731006645927,-500.0,0.00027996,2]
[341577165,1731006645938,-500.0,0.00027997,2]
[341577167,1731006645948,-500.0,0.00027997,2]
[341577169,1731006645959,-501.13869742,0.00027997,2]
[341577172,1731006645971,-501.02582583,0.00027997,2]
[341577174,1731006645981,-597.00040818,0.00027997,2]
[341577175,1731006645995,-500.0,0.00027997,2]
[341577177,1731006646006,-500.0,0.00027997,2]
[341577178,1731006646017,-500.0,0.00027997,2]
[341577179,1731006646031,-500.0,0.00027997,2]
[341577180,1731006646041,-500.0,0.00027997,2]
[341577181,1731006646053,-500.0,0.00027997,2]
[341577182,1731006646064,-187.9276053,0.00027997,2]
[341577183,1731006646075,-500.0,0.00027997,2]
[341577184,1731006646086,-500.0,0.00027997,2]
[341577185,1731006646097,-500.0,0.00027997,2]
[341577186,1731006646108,-500.0,0.00027997,2]
[341577187,1731006646119,-500.0,0.00027997,2]
[341577188,1731006646130,-500.0,0.00027997,2]
[341577189,1731006646141,-500.0,0.00027997,2]
[341577190,1731006646151,-503.28512649,0.00027997,2]
[341577191,1731006646162,-500.50592748,0.00027997,2]
[341577192,1731006646174,-503.43936377,0.00027997,2]
[341577193,1731006646185,-500.0,0.00027997,2]
[341577194,1731006646196,-500.0,0.00027997,2]
[341577195,1731006646207,-500.0,0.00027997,2]
[341577196,1731006646218,-500.0,0.00027997,2]
[341577197,1731006646228,-500.0,0.00027997,2]
[341577198,1731006646239,-500.0,0.00027997,2]
[341577199,1731006646250,-155.85684796,0.00027997,2]
[341577205,1731006646588,-183.22458381,0.00027997,2]
[341577206,1731006646616,-500.0,0.00027997,2]
[341577207,1731006646626,-500.0,0.00027997,2]
[341577208,1731006646637,-500.0,0.00027997,2]
[341577209,1731006646649,-500.0,0.00027997,2]
[341577210,1731006646659,-500.0,0.00027997,2]
[341577211,1731006646669,-500.61534152,0.00027997,2]
[341577212,1731006646683,-500.0,0.00027997,2]
[341577213,1731006646696,-500.0,0.00027997,2]
[341577214,1731006646706,-500.0,0.00027997,2]
[341577215,1731006646717,-500.0,0.00027997,2]
[341577216,1731006646727,-500.0,0.00027997,2]
[341577217,1731006646738,-500.0,0.00027997,2]
[341577218,1731006646748,-752.59,0.00027997,2]
[341577219,1731006646759,-1964.6,0.00027997,2]
[341577220,1731006646769,-3277.23,0.00027997,2]
[341577221,1731006646781,-874.54,0.00027997,2]
[341577222,1731006646791,-500.0,0.00027997,2]
[341577223,1731006646801,-500.0,0.00027997,2]
[341577224,1731006646810,-500.0,0.00027997,2]
[341577225,1731006646820,-1066.81,0.00027997,2]
[341577226,1731006646829,-754.13,0.00027997,2]
[341577227,1731006646839,-500.0,0.00027997,2]
[341577228,1731006646849,-697.97,0.00027997,2]
[341577229,1731006646858,-743.72,0.00027997,2]
[341577230,1731006646868,-500.0,0.00027997,2]
[341577231,1731006646878,-500.0,0.00027997,2]
[341577232,1731006646887,-500.0,0.00027997,2]
[341577233,1731006646897,-873.13,0.00027997,2]
[341577234,1731006646906,-1684.47,0.00027997,2]
[341577235,1731006646915,-500.0,0.00027997,2]
[341577236,1731006646924,-1501.89,0.00027997,2]
[341577237,1731006646934,-1855.13,0.00027997,2]
[341577238,1731006646944,-1577.23,0.00027997,2]
[341577239,1731006646953,-500.0,0.00027997,2]
[341577240,1731006646963,-1030.59,0.00027997,2]
[341577241,1731006646972,-1130.13,0.00027997,2]
[341577242,1731006646981,-704.45,0.00027997,2]
[341577243,1731006646990,-920.53,0.00027997,2]
[341577244,1731006647000,-1276.51,0.00027997,2]
[341577245,1731006647009,-1518.09,0.00027997,2]
[341577246,1731006647019,-3010.52,0.00027997,2]
[341577247,1731006647030,-500.0,0.00027997,2]
[341577248,1731006647041,-2199.01,0.00027997,2]
[341577249,1731006647051,-1048.53,0.00027997,2]
[341577250,1731006647061,-500.0,0.00027997,2]
[341577251,1731006647072,-1121.9,0.00027997,2]
[341577252,1731006647084,-500.0,0.00027997,2]
[341577253,1731006647094,-1772.55,0.00027997,2]
[341577254,1731006647104,-715.44,0.00027997,2]
[341577255,1731006647114,-2000.0,0.00027997,2]
[341577256,1731006647125,-722.96,0.00027997,2]
[341577257,1731006647135,-2326.17,0.00027997,2]
[341577258,1731006647145,-500.0,0.00027997,2]
[341577259,1731006647154,-500.0,0.00027997,2]
[341577260,1731006647164,-901.99,0.00027997,2]
[341577261,1731006647173,-500.0,0.00027997,2]
[341577262,1731006647183,-633.65,0.00027997,2]
[341577263,1731006647192,-1466.36,0.00027997,2]
[341577264,1731006647201,-1292.34,0.00027997,2]
[341577265,1731006647210,-500.0,0.00027997,2]
[341577266,1731006647220,-825.64,0.00027997,2]
[341577267,1731006647230,-665.37,0.00027997,2]
[341577268,1731006647239,-500.0,0.00027997,2]
[341577269,1731006647247,-1050.72,0.00027997,2]
[341577270,1731006647257,-500.0,0.00027999,2]
[341577271,1731006647266,-776.25940435,0.00028115,2]
[341577272,1731006647278,-179.80401251,0.00028115,2]
[341577273,1731006647287,-257.55722676,0.00028115,2]
[341577274,1731006647296,-169.76846182,0.00028116,2]
[341577275,1731006647306,-563.85950918,0.00028135,2]
[341577276,1731006647315,-175.5,0.00028147,2]
[341577277,1731006647325,-158.33567086,0.00028171,2]
[341577278,1731006647334,-35277.82491816,0.0002818,2]
[341577279,1731006647347,-26749.34311696,0.0002818,2]
[341577280,1731006647359,-46653.15529068,0.0002818,2]
[341577281,1731006647368,-500.0,0.00028214,2]
[341577282,1731006647378,-182.03,0.00028214,2]
[341577283,1731006647387,-500.0,0.00028214,2]
[341577284,1731006647396,-1147.5,0.00028214,2]
[341577285,1731006647406,-500.0,0.00028214,2]
[341577286,1731006647415,-936.73,0.00028214,2]
[341577287,1731006647424,-2337.67,0.00028214,2]
[341577288,1731006647434,-500.0,0.00028214,2]
[341577289,1731006647443,-1548.35,0.00028214,2]
[341577290,1731006647453,-1962.15,0.00028214,2]
[341577291,1731006647462,-742.7,0.00028214,2]
[341577292,1731006647472,-500.0,0.00028214,2]
[341577293,1731006647481,-500.0,0.00028214,2]
[341577294,1731006647491,-1161.63,0.00028214,2]
[341577295,1731006647501,-684.32,0.00028214,2]
[341577296,1731006647511,-500.0,0.00028214,2]
[341577297,1731006647523,-500.0,0.00028214,2]
[341577298,1731006647532,-1478.55,0.00028214,2]
[341577299,1731006647544,-746.61,0.00028214,2]
[341577300,1731006647554,-1433.34,0.00028214,2]
[341577301,1731006647565,-500.0,0.00028214,2]
[341577302,1731006647575,-500.0,0.00028214,2]
[341577303,1731006647585,-1278.94,0.00028214,2]
[341577304,1731006647594,-500.0,0.00028214,2]
[341577305,1731006647603,-916.61,0.00028214,2]
[341577306,1731006647613,-4289.58,0.00028214,2]
[341577307,1731006647622,-500.0,0.00028214,2]
[341577308,1731006647631,-500.0,0.00028214,2]
[341577309,1731006647643,-500.0,0.00028215,2]
[341577310,1731006647652,-294.514144,0.00028215,2]
[341577311,1731006647662,-188.790643,0.00028215,2]
[341577312,1731006647672,-500.0,0.00028215,2]
[341577313,1731006647685,-2206.64,0.00028215,2]
[341577314,1731006647697,-732.22,0.00028215,2]
[341577315,1731006647707,-500.0,0.00028215,2]
[341577316,1731006647716,-500.0,0.00028215,2]
[341577317,1731006647726,-1067.96,0.00028215,2]
[341577318,1731006647737,-500.0,0.00028215,2]
[341577319,1731006647746,-706.54,0.00028215,2]
[341577320,1731006647755,-500.0,0.00028215,2]
[341577321,1731006647765,-500.0,0.00028215,2]
[341577322,1731006647778,-500.0,0.00028215,2]
[341577323,1731006647787,-500.0,0.00028215,2]
[341577324,1731006647796,-500.0,0.00028215,2]
[341577325,1731006647805,-500.0,0.00028215,2]
[341577326,1731006647815,-500.0,0.00028215,2]
[341577327,1731006647824,-500.0,0.00028215,2]
[341577328,1731006647833,-984.03,0.00028215,2]
[341577329,1731006647844,-722.46,0.00028215,2]
[341577330,1731006647853,-500.0,0.00028215,2]
[341577331,1731006647863,-500.0,0.00028215,2]
[341577332,1731006647872,-500.0,0.00028215,2]
[341577333,1731006647882,-642.45,0.00028215,2]
[341577334,1731006647891,-500.0,0.00028215,2]
[341577335,1731006647900,-500.0,0.00028215,2]
[341577336,1731006647910,-500.0,0.00028215,2]
[341577337,1731006647919,-500.0,0.00028215,2]
[341577338,1731006647928,-543.38,0.00028215,2]
[341577339,1731006647937,-500.0,0.00028215,2]
[341577340,1731006647946,-500.0,0.00028215,2]
[341577341,1731006647955,-500.0,0.00028215,2]
[341577342,1731006647965,-762.91,0.00028215,2]
[341577343,1731006647974,-500.0,0.00028215,2]
[341577344,1731006647983,-887.87,0.00028215,2]
[341577345,1731006647993,-500.0,0.00028215,2]
[341577346,1731006648001,-500.0,0.00028215,2]
[341577347,1731006648010,-660.78,0.00028215,2]
[341577348,1731006648019,-500.0,0.00028215,2]
[341577349,1731006648031,-1160.67,0.00028215,2]
[341577350,1731006648041,-500.0,0.00028215,2]
[341577351,1731006648050,-500.0,0.00028215,2]
[341577352,1731006648060,-500.0,0.00028215,2]
[341577353,1731006648070,-500.0,0.00028215,2]
[341577354,1731006648080,-727.8,0.00028215,2]
[341577355,1731006648095,-500.0,0.00028215,2]
[341577356,1731006648106,-636.92,0.00028215,2]
[341577357,1731006648117,-1142.78,0.00028215,2]
[341577358,1731006648128,-500.0,0.00028215,2]
[341577359,1731006648139,-741.01,0.00028215,2]
[341577360,1731006648150,-500.0,0.00028215,2]
[341577361,1731006648160,-500.0,0.00028215,2]
[341577362,1731006648171,-500.0,0.00028215,2]
[341577363,1731006648181,-554.02,0.00028215,2]
[341577364,1731006648191,-841.43,0.00028215,2]
[341577365,1731006648201,-539.14474934,0.00028215,2]
[341577366,1731006648212,-500.0,0.00028215,2]
[341577367,1731006648223,-500.0,0.00028215,2]
[341577368,1731006648233,-500.0,0.00028215,2]
[341577369,1731006648244,-500.0,0.00028215,2]
[341577370,1731006648254,-500.0,0.00028215,2]
[341577371,1731006648264,-500.0,0.00028215,2]
[341577372,1731006648276,-500.0,0.00028215,2]
[341577373,1731006648286,-730.85,0.00028215,2]
[341577374,1731006648296,-500.0,0.00028215,2]
[341577375,1731006648307,-500.0,0.00028215,2]
[341577376,1731006648317,-939.55,0.00028215,2]
[341577377,1731006648327,-500.0,0.00028215,2]
[341577378,1731006648338,-500.0,0.00028215,2]
[341577379,1731006648347,-500.0,0.00028215,2]
[341577380,1731006648357,-500.0,0.00028215,2]
[341577381,1731006648367,-492.42645543,0.00028215,2]
[341577382,1731006648377,-500.0,0.00028215,2]
[341577383,1731006648387,-500.0,0.00028215,2]
[341577384,1731006648397,-493.75054385,0.00028215,2]
[341577385,1731006648407,-500.0,0.00028215,2]
[341577386,1731006648417,-500.0,0.00028215,2]
[341577387,1731006648427,-500.0,0.00028215,2]
[341577388,1731006648437,-500.0,0.00028215,2]
[341577389,1731006648447,-500.0,0.00028215,2]
[341577390,1731006648457,-535.45,0.00028215,2]
[341577391,1731006648466,-500.0,0.00028215,2]
[341577392,1731006648476,-500.0,0.00028215,2]
[341577393,1731006648485,-542.03,0.00028215,2]
[341577394,1731006648495,-500.0,0.00028215,2]
[341577395,1731006648505,-500.0,0.00028215,2]
[341577396,1731006648515,-500.0,0.00028215,2]
[341577397,1731006648527,-1050.27,0.00028215,2]
[341577398,1731006648539,-500.0,0.00028215,2]
[341577399,1731006648550,-915.38,0.00028215,2]
[341577400,1731006648566,-500.0,0.00028215,2]
[341577401,1731006648576,-500.0,0.00028215,2]
[341577402,1731006648586,-965.56,0.00028215,2]
[341577403,1731006648596,-500.0,0.00028215,2]
[341577404,1731006648607,-500.0,0.00028215,2]
[341577405,1731006648617,-500.0,0.00028215,2]
[341577406,1731006648627,-741.88,0.00028215,2]
[341577407,1731006648636,-500.0,0.00028215,2]
[341577408,1731006648647,-500.0,0.00028215,2]
[341577409,1731006648656,-513.03566529,0.00028215,2]
[341577410,1731006648666,-500.0,0.00028215,2]
[341577411,1731006648676,-500.0,0.00028215,2]
[341577412,1731006648685,-500.0,0.00028215,2]
[341577413,1731006648695,-312.04892316,0.00028215,2]
[341577414,1731006648705,-200.0,0.00028215,2]
[341577415,1731006648715,-626.37,0.00028215,2]
[341577416,1731006648724,-500.0,0.00028215,2]
[341577417,1731006648735,-532.61,0.00028215,2]
[341577418,1731006648745,-500.0,0.00028215,2]
[341577419,1731006648754,-1130.55,0.00028215,2]
[341577420,1731006648764,-500.0,0.00028215,2]
[341577421,1731006648776,-500.0,0.00028215,2]
[341577422,1731006648785,-500.0,0.00028215,2]
[341577423,1731006648795,-500.0,0.00028215,2]
[341577424,1731006648806,-1059.89,0.00028215,2]
[341577425,1731006648815,-651.8,0.00028215,2]
[341577426,1731006648825,-335.29973532,0.00028215,2]
[341577427,1731006648835,-543.6,0.00028215,2]
[341577428,1731006648845,-500.0,0.00028215,2]
[341577429,1731006648854,-500.0,0.00028215,2]
[341577430,1731006648863,-500.0,0.00028215,2]
[341577431,1731006648873,-500.0,0.00028215,2]
[341577432,1731006648883,-624.52,0.00028215,2]
[341577433,1731006648892,-500.0,0.00028215,2]
[341577434,1731006648902,-500.0,0.00028215,2]
[341577435,1731006648911,-500.0,0.00028215,2]
[341577436,1731006648920,-542.47,0.00028215,2]
[341577437,1731006648930,-525.84,0.00028215,2]
[341577438,1731006648939,-619.61,0.00028215,2]
[341577439,1731006648949,-613.59,0.00028215,2]
[341577440,1731006648959,-500.0,0.00028215,2]
[341577441,1731006648968,-500.0,0.00028215,2]
[341577442,1731006649109,-500.0,0.00028215,2]
[341577443,1731006649119,-500.0,0.00028215,2]
[341577444,1731006649128,-744.37,0.00028215,2]
[341577445,1731006649138,-500.0,0.00028215,2]
[341577446,1731006649148,-500.0,0.00028215,2]
[341577447,1731006649158,-500.0,0.00028215,2]
[341577448,1731006649168,-500.0,0.00028215,2]
[341577449,1731006649179,-500.0,0.00028215,2]
[341577450,1731006649189,-500.0,0.00028215,2]
[341577451,1731006649199,-500.0,0.00028215,2]
[341577452,1731006649208,-500.0,0.00028215,2]
[341577453,1731006649218,-500.0,0.00028215,2]
[341577454,1731006649227,-500.0,0.00028215,2]
[341577455,1731006649236,-500.0,0.00028215,2]
[341577456,1731006649245,-591.5,0.00028215,2]
[341577457,1731006649255,-772.8,0.00028215,2]
[341577458,1731006649264,-579.48121389,0.00028215,2]
[341577459,1731006649276,-500.0,0.00028215,2]
[341577460,1731006649285,-720.36,0.00028215,2]
[341577461,1731006649294,-500.0,0.00028215,2]
[341577462,1731006649304,-500.0,0.00028215,2]
[341577463,1731006649313,-500.0,0.00028215,2]
[341577464,1731006649323,-500.0,0.00028215,2]
[341577465,1731006649332,-500.0,0.00028215,2]
[341577466,1731006649341,-500.0,0.00028215,2]
[341577467,1731006649350,-906.85,0.00028215,2]
[341577468,1731006649360,-500.0,0.00028215,2]
[341577469,1731006649369,-500.0,0.00028215,2]
[341577470,1731006649379,-500.0,0.00028215,2]
[341577471,1731006649388,-500.0,0.00028215,2]
[341577472,1731006649397,-506.23955033,0.00028215,2]
[341577473,1731006649407,-1219.65,0.00028215,2]
[341577474,1731006649416,-512.23,0.00028215,2]
[341577475,1731006649426,-514.4,0.00028215,2]
[341577476,1731006649436,-500.0,0.00028215,2]
[341577477,1731006649445,-500.0,0.00028215,2]
[341577478,1731006649455,-669.12,0.00028215,2]
[341577479,1731006649465,-518.66,0.00028215,2]